Cogmind - Beta 17 @@@ ROGUE MODE // 2026.07.10 @ 13:09:02 Player: Artackni Result: Destroyed by G-73 Enforcer with Phase Gun Performance ------------- Evolutions (9) 4500 Regions Visited (13) 2600 Robots Destroyed (4) 20 Value Destroyed (77) 77 Prototype IDs (0) 0 Alien Tech Used (0) 0 Bonus (1000) 1000 TOTAL SCORE: 8197 Bonus ------- Entered DSFs 1000 Cogmind --------- Core Integrity 0/1600 Matter 292/300 Energy 98/100 System Corruption 10% Temperature Cool (9) Movement Core (50) Location -1/Access Parts ------- > --- POWER (2) -------- (None) > --- PROPULSION (12) -- (None) > --- UTILITY (9) ------ Improved Propulsion Shielding > --- WEAPON (2) ------- (None) > --- INVENTORY (5) ---- Improved Propulsion Shielding Improved Propulsion Shielding Improved Propulsion Shielding Great Maul Peak State ------------ > --- POWER ------------ (None) > --- PROPULSION ------- Spiked Treads Flight Unit > --- UTILITY ---------- Improved Light Armor Plating Advanced System Shield > --- WEAPON ----------- Great Axe > --- INVENTORY -------- Improved Propulsion Shielding Improved Propulsion Shielding Improved Propulsion Shielding Improved Propulsion Shielding [Rating: 17] Favorites ----------- Power None Propulsion Flight Unit Treads Light Treads Leg Centrium Leg Flight Unit Flight Unit Utility Improved Propulsion Shielding Hackware Advanced System Shield Protection Improved Propulsion Shielding Weapon Great Axe Launcher Grenade Launcher Impact Weapon Great Maul Slashing Weapon Great Axe Build | -11 -10 -10 -7 -5 -5 -4 -4 -4 -3 -3 -2 -2 -1 ------- Run | Yrd Mat Sub Rec Fac DSF Fac Upp Upp Res DSF Res Tes Acc Slots Evolved 18 | . . . . 10 . 2 . . 2 . 2 . 2 Power 1 | . . . . . . . . . . . . . 1 Propulsion 10 | . . . . 6 . 1 . . 1 . 1 . 1 Utility 7 | . . . . 4 . 1 . . 1 . 1 . . Weapon . | . . . . . . . . . . . . . . Parts Attached 14 | 2 1 3 . 3 . . . . . . 2 3 . Power . | . . . . . . . . . . . . . . Engine . | . . . . . . . . . . . . . . Core . | . . . . . . . . . . . . . . Reactor . | . . . . . . . . . . . . . . Propulsion 7 | 2 . 3 . . . . . . . . 1 1 . Treads 3 | 2 . 1 . . . . . . . . . . . Leg 1 | . . . . . . . . . . . 1 . . Wheel . | . . . . . . . . . . . . . . Hover . | . . . . . . . . . . . . . . Flight 3 | . . 2 . . . . . . . . . 1 . Utility 4 | . . . . 2 . . . . . . 1 1 . Device . | . . . . . . . . . . . . . . Storage . | . . . . . . . . . . . . . . Processor . | . . . . . . . . . . . . . . Hackware 2 | . . . . 1 . . . . . . 1 . . Protection 2 | . . . . 1 . . . . . . . 1 . Artifact . | . . . . . . . . . . . . . . Weapon 3 | . 1 . . 1 . . . . . . . 1 . Energy Gun . | . . . . . . . . . . . . . . Energy Cannon . | . . . . . . . . . . . . . . Ballistic Gun . | . . . . . . . . . . . . . . Ballistic Cannon . | . . . . . . . . . . . . . . Launcher 1 | . 1 . . . . . . . . . . . . Special Weapon . | . . . . . . . . . . . . . . Impact Weapon 1 | . . . . . . . . . . . . 1 . Slashing Weapon 1 | . . . . 1 . . . . . . . . . Piercing Weapon . | . . . . . . . . . . . . . . Special Melee Weapon . | . . . . . . . . . . . . . . Unidentified Prototypes . | . . . . . . . . . . . . . . Parts Lost 8 | . . 1 . . . . 6 . . . . . 1 Power . | . . . . . . . . . . . . . . Propulsion 4 | . . . . . . . 3 . . . . . 1 Utility 2 | . . . . . . . 2 . . . . . . Weapon 2 | . . 1 . . . . 1 . . . . . . Highest Loss Streak 6 | . . 1 . . . . 6 . . . . . 1 To Critical Strikes . | . . . . . . . . . . . . . . Average Backups 3 | . 1 2 3 3 4 5 4 4 4 4 5 4 4 Power . | . . . . . . . . . . . . . . Propulsion 1 | . . 2 3 3 2 1 . . . . . . . Utility 2 | . . . . . 2 4 4 4 4 4 4 3 3 Weapon . | . . . . . . . . . . . 1 1 1 Tool/Special . | . . . . . . . . . . . . . . Unused Backups 3 | . . . . . . . . . . . . . 3 Power . | . . . . . . . . . . . . . . Propulsion . | . . . . . . . . . . . . . . Utility 3 | . . . . . . . . . . . . . 3 Weapon . | . . . . . . . . . . . . . . Tool/Special . | . . . . . . . . . . . . . . Average Slot Usage (%) 18 | . 29 34 28 19 29 26 22 . . . 5 3 7 Treads 7 | . 28 14 28 4 . . . . . . . . . Flight 5 | . . 14 . 6 11 10 8 . . . . 2 2 Hackware 1 | . . . . 4 5 5 3 . . . 3 . . Protection 1 | . . . . 1 5 5 3 . . . . 1 4 Launcher 1 | . 1 6 . . . . . . . . . . . Peak Build Rating 17 | 2 3 3 3 15 16 16 17 1 1 1 13 12 14 Average Rating 6 | 1 2 2 3 10 15 16 13 1 1 1 7 6 9 On Entrance 5 | . 2 2 3 3 15 16 16 1 1 1 1 1 12 Avg Prop Armor Cover (%) 37 | 41 41 34 41 41 . . 30 . . . 30 . . Naked Turns 158 | . . . . . . . 2 42 2 31 30 51 . Heaviest Build 7 | . . 3 . 7 7 7 7 . . . . 4 2 Greatest Support 8 | 3 3 8 3 8 8 8 8 3 3 3 3 8 8 Greatest Overweight (x) 2 | . . . . . . . 2 . . . . . . Average Overweight (x) . | . . . . . . . . . . . . . . Largest Inventory Capacity 5 | 5 5 5 5 5 5 5 5 5 5 5 5 5 5 Average Capacity 5 | 5 5 5 5 5 5 5 5 5 5 5 5 5 5 Most Carried 5 | . 3 3 4 4 5 5 5 4 4 5 5 5 4 Average Carried 3 | . 1 2 3 3 4 5 4 4 4 4 5 4 3 Final Capacity 5 | 5 5 5 5 5 5 5 5 5 5 5 5 5 5 Final Carried 5 | . 3 3 4 3 5 5 4 4 4 5 5 4 4 Class Distribution -------------------- 100% | Mutant Dominant Class ---------------- Mutant | -10/Materials Mutant | -10/Subcaves Mutant | -7/Recycling Mutant | -5/Factory Mutant | -5/DSF Mutant | -4/Factory Mutant | -4/Upper Caves Mutant | -4/Upper Caves Mutant | -3/Research Mutant | -3/DSF Mutant | -2/Research Mutant | -2/Testing Mutant | -1/Access Resources | -11 -10 -10 -7 -5 -5 -4 -4 -4 -3 -3 -2 -2 -1 ----------- Run | Yrd Mat Sub Rec Fac DSF Fac Upp Upp Res DSF Res Tes Acc Matter Collected 433 | 108 7 19 79 . . . 89 . . 81 11 . 39 Remotely . | . . . . . . . . . . . . . . Salvage Created 41 | . 41 . . . . . . . . . . . . Parts 6 | . 6 . . . . . . . . . . . . Haulers Intercepted . | . . . . . . . . . . . . . . Recyclers Shooed . | . . . . . . . . . . . . . . Parts Field Recycled . | . . . . . . . . . . . . . . Retrieved Matter . | . . . . . . . . . . . . . . Parts Self-Destructed 3 | . . 3 . . . . . . . . . . . Prevented . | . . . . . . . . . . . . . . Parts Restored . | . . . . . . . . . . . . . . Kills | -11 -10 -10 -7 -5 -5 -4 -4 -4 -3 -3 -2 -2 -1 ------- Run | Yrd Mat Sub Rec Fac DSF Fac Upp Upp Res DSF Res Tes Acc Combat Hostiles Destroyed 3 | . 3 . . . . . . . . . . . . AOE 3 | . 3 . . . . . . . . . . . . Classes Destroyed 2 | . 2 . . . . . . . . . . . . Tunneler 1 | . 1 . . . . . . . . . . . . Swarmer 3 | . 3 . . . . . . . . . . . . Best Kill Streak 3 | . 3 . . . . . . . . . . . . Combat Bots Only 3 | . 3 . . . . . . . . . . . . Max Kills in Single Turn 2 | . 2 . . . . . . . . . . . . Gunslinging . | . . . . . . . . . . . . . . Exploded 2 | . 2 . . . . . . . . . . . . Melee . | . . . . . . . . . . . . . . Uniques/NPCs Destroyed . | . . . . . . . . . . . . . . Combat | -11 -10 -10 -7 -5 -5 -4 -4 -4 -3 -3 -2 -2 -1 -------- Run | Yrd Mat Sub Rec Fac DSF Fac Upp Upp Res DSF Res Tes Acc Hostile Shots Fired 305 | . 7 56 . . 6 5 66 . . 18 17 . 130 Missed 126 | . . 23 . . 5 3 21 . . 8 6 . 60 Hits 179 | . 7 33 . . 1 2 45 . . 10 11 . 70 Melee 14 | . . . . . . . . . . 5 9 . . Projectile 165 | . 7 33 . . 1 2 45 . . 5 2 . 70 AOE 4 | . . 1 . . . . . . . 2 . . 1 Critical Strikes 14 | . . 2 . . . . . . . 2 6 . 4 Actively Blocked 1 | . . . . . . . . . . . . . 1 Damage Taken 4081 | . 78 492 . . . 44 710 . . 500 437 . 1820 Core 3051 | . . 249 . . . . 318 . . 500 363 . 1621 Absorbed by Shields . | . . . . . . . . . . . . . . Redirected to Shielding 93 | . . . . . . . . . . . . . 93 Core Remaining (%) 67 | 100 . . . . 100 . . 72 . 61 . 74 . Volleys Fired 6 | . 3 3 . . . . . . . . . . . Largest 1 | . 1 1 . . . . . . . . . . . Hottest 30 | . 30 30 . . . . . . . . . . . Shots Fired 6 | . 3 3 . . . . . . . . . . . Gun . | . . . . . . . . . . . . . . Cannon . | . . . . . . . . . . . . . . Launcher 6 | . 3 3 . . . . . . . . . . . Special . | . . . . . . . . . . . . . . Kinetic . | . . . . . . . . . . . . . . Thermal . | . . . . . . . . . . . . . . Explosive 6 | . 3 3 . . . . . . . . . . . Electromagnetic . | . . . . . . . . . . . . . . Robot Hit Streak . | . . . . . . . . . . . . . . Robot Miss Streak 1 | . 1 . . . . . . . . . . . . Penetration Max . | . . . . . . . . . . . . . . Secondary Targets . | . . . . . . . . . . . . . . Shots Hit Robots . | . . . . . . . . . . . . . . Core Hits 2 | . 2 . . . . . . . . . . . . Critical Kills . | . . . . . . . . . . . . . . Critical Parts Destroyed . | . . . . . . . . . . . . . . Critical Strikes . | . . . . . . . . . . . . . . Melee Attacks 2 | . . . . . . . . . . . . 1 1 Impact 2 | . . . . . . . . . . . . 1 1 Slashing . | . . . . . . . . . . . . . . Piercing . | . . . . . . . . . . . . . . Sneak Attacks . | . . . . . . . . . . . . . . Combat Hostiles . | . . . . . . . . . . . . . . Follow-up Attacks . | . . . . . . . . . . . . . . Damage Inflicted 233 | . 170 . . . . . . . . . . . 63 Guns . | . . . . . . . . . . . . . . Cannons . | . . . . . . . . . . . . . . Explosions 225 | . 170 . . . . . . . . . . . 55 Melee . | . . . . . . . . . . . . . . Ramming 8 | . . . . . . . . . . . . . 8 Kinetic . | . . . . . . . . . . . . . . Thermal 55 | . . . . . . . . . . . . . 55 Explosive 170 | . 170 . . . . . . . . . . . . Electromagnetic . | . . . . . . . . . . . . . . Impact . | . . . . . . . . . . . . . . Slashing . | . . . . . . . . . . . . . . Piercing . | . . . . . . . . . . . . . . Highest Corruption 10 | . . . . 2 2 . . . . . . . 10 Average Corruption 4 | . . . . 2 2 . . . . . . . 5 Corruption Purged . | . . . . . . . . . . . . . . Corruption Blocked . | . . . . . . . . . . . . . . Effects 5 | . . . . . 1 . . . . . . . 4 Matter Fused 1 | . . . . . . . . . . . . . 1 Heat Flow Errors 1 | . . . . . . . . . . . . . 1 Parts Rejected 1 | . . . . . 1 . . . . . . . . Data Loss (minor) 1 | . . . . . . . . . . . . . 1 Misdirections 1 | . . . . . . . . . . . . . 1 Overload Shots . | . . . . . . . . . . . . . . Overflow Damage 59 | . 47 . . . . . . . . . . . 12 Projectiles . | . . . . . . . . . . . . . . Explosions 59 | . 47 . . . . . . . . . . . 12 Melee . | . . . . . . . . . . . . . . Knockbacks . | . . . . . . . . . . . . . . Impact . | . . . . . . . . . . . . . . Kinetic . | . . . . . . . . . . . . . . Secondary . | . . . . . . . . . . . . . . Self-Inflicted Damage 207 | . 24 66 . . . . . . . . . . 117 Shots 6 | . 2 3 . . . . . . . . . . 1 Rammed 3 | . . . . . . 1 . . . . . . 2 Targets Rammed 3 | . . . . . . 1 . . . . . . 2 Kicked . | . . . . . . . . . . . . . . Crushed . | . . . . . . . . . . . . . . Highest Temperature 244 | . 5 244 . . . . . . . . . . 244 Average Temperature 127 | . 5 137 . . . . . . . . . . 140 Received Heat Transfer 505 | . 6 418 . . . . . . . . 9 . 72 Siege Activations . | . . . . . . . . . . . . . . Martial Activations . | . . . . . . . . . . . . . . Shielding Activations . | . . . . . . . . . . . . . . Robots Disrupted . | . . . . . . . . . . . . . . Combat Hostiles . | . . . . . . . . . . . . . . Robots Corrupted . | . . . . . . . . . . . . . . Combat Hostiles . | . . . . . . . . . . . . . . Parts Fried . | . . . . . . . . . . . . . . Impact Corruptions . | . . . . . . . . . . . . . . Robots Melted . | . . . . . . . . . . . . . . Combat Hostiles . | . . . . . . . . . . . . . . Parts Melted . | . . . . . . . . . . . . . . Heat Transferred 50 | . . . . . . . . . . . . . 50 Parts Sabotaged . | . . . . . . . . . . . . . . Parts Stolen . | . . . . . . . . . . . . . . Parts Stripped . | . . . . . . . . . . . . . . Power Chain Reactions . | . . . . . . . . . . . . . . Alert | -11 -10 -10 -7 -5 -5 -4 -4 -4 -3 -3 -2 -2 -1 ------- Run | Yrd Mat Sub Rec Fac DSF Fac Upp Upp Res DSF Res Tes Acc Maximum Alert Level 1 | . . . . . . . . . . . . . 1 Low Security (%) 91 | 100 100 . 100 100 100 100 . . 100 100 100 100 66 Level 1 8 | . . . . . . . . . . . . . 33 Level 2 . | . . . . . . . . . . . . . . Level 3 . | . . . . . . . . . . . . . . Level 4 . | . . . . . . . . . . . . . . Level 5 . | . . . . . . . . . . . . . . High Security . | . . . . . . . . . . . . . . Max Security . | . . . . . . . . . . . . . . Peak Influence 319 | . 146 . . . 3 1 . . . . 15 15 319 Initial 8 | . . . . . 3 1 . . . . . 8 . Average 45 | . 98 . . . 3 1 . . . . . 2 136 Influence Increases 622 | . 173 . . 5 . . 15 . . . 15 15 399 Destroy 0b10 Robot/C 60 | . 60 . . . . . . . . . . . . Destroy 0b10 Robot/NC 5 | . 5 . . . . . . . . . . . . Destroy Leader 10 | . 10 . . . . . . . . . . . . Successful Hack 5 | . . . . 5 . . . . . . . . . Disable Machine 60 | . 30 . . . . . . . . . . 15 15 Destroy Structure 62 | . 8 . . . . . . . . . . . 54 Partial Spotted 15 | . . . . . . . . . . . 15 . . Lose Combat Pursuer 405 | . 60 . . . . . 15 . . . . . 330 Influence Decreases 303 | . 30 143 . . 2 2 11 5 . . . 30 80 Entered New Map 84 | . . 70 . . 2 2 1 2 . . . 7 . Time Decay 199 | . 30 73 . . . . . 3 . . . 23 70 Lost Part 20 | . . . . . . . 10 . . . . . 10 Squads Dispatched 10 | . 3 . . . . . . . . 1 1 1 4 Investigation 4 | . 3 . . . . . . . . . . . 1 Extermination 2 | . . . . . . . . . . . . 1 1 Reinforcement 4 | . . . . . . . . . . 1 1 . 2 Assault . | . . . . . . . . . . . . . . Garrison . | . . . . . . . . . . . . . . Intercept . | . . . . . . . . . . . . . . Searches Triggered . | . . . . . . . . . . . . . . Construction Impeded . | . . . . . . . . . . . . . . Haulers Reinforced . | . . . . . . . . . . . . . . Active Scanning Responses . | . . . . . . . . . . . . . . Cargo Convoy Interrupts . | . . . . . . . . . . . . . . Stealth | -11 -10 -10 -7 -5 -5 -4 -4 -4 -3 -3 -2 -2 -1 --------- Run | Yrd Mat Sub Rec Fac DSF Fac Upp Upp Res DSF Res Tes Acc Distress Signals 7 | . . . . . . . . . . . . 1 6 Communications Jammed . | . . . . . . . . . . . . . . Distress Signals . | . . . . . . . . . . . . . . Times Spotted 80 | . 7 14 . . 1 1 7 . . 3 6 3 38 Peak Tracking Total 21 | . 8 8 . . 1 2 6 . . 3 6 2 21 Tactical Retreats 9 | . 2 1 . . . . 1 . . . . . 5 Traps | -11 -10 -10 -7 -5 -5 -4 -4 -4 -3 -3 -2 -2 -1 ------- Run | Yrd Mat Sub Rec Fac DSF Fac Upp Upp Res DSF Res Tes Acc Traps Triggered 6 | . 3 . . 1 . . . . . . 1 . 1 Indirectly . | . . . . . . . . . . . . . . Trap Hack Attempts . | . . . . . . . . . . . . . . Triggered . | . . . . . . . . . . . . . . Disarmed . | . . . . . . . . . . . . . . Reprogrammed . | . . . . . . . . . . . . . . Reused . | . . . . . . . . . . . . . . Traps Extracted . | . . . . . . . . . . . . . . Installed . | . . . . . . . . . . . . . . Triggered . | . . . . . . . . . . . . . . Machines | -11 -10 -10 -7 -5 -5 -4 -4 -4 -3 -3 -2 -2 -1 ---------- Run | Yrd Mat Sub Rec Fac DSF Fac Upp Upp Res DSF Res Tes Acc Machines Disabled 4 | . 2 . . . . . . . . . . 1 1 Max in Single Turn 2 | . 2 . . . . . . . . . . 1 1 Energy Cycler 1 | . . . . . . . . . . . . . 1 Machines Repaired . | . . . . . . . . . . . . . . Machines Dismantled . | . . . . . . . . . . . . . . Machines Sabotaged . | . . . . . . . . . . . . . . Overloaded Fab Kills . | . . . . . . . . . . . . . . Hacking | -11 -10 -10 -7 -5 -5 -4 -4 -4 -3 -3 -2 -2 -1 --------- Run | Yrd Mat Sub Rec Fac DSF Fac Upp Upp Res DSF Res Tes Acc Machines Accessed 5 | . . . 2 1 . . 1 . 1 . . . . Terminals 4 | . . . 2 1 . . . . 1 . . . . Fabricators . | . . . . . . . . . . . . . . Repair Stations . | . . . . . . . . . . . . . . Recycling Units . | . . . . . . . . . . . . . . Scanalyzers . | . . . . . . . . . . . . . . Garrison Access . | . . . . . . . . . . . . . . Total Hacks 8 | . . . 5 1 . . 1 . 1 . . . . Successful 3 | . . . . 1 . . 1 . 1 . . . . Failed 5 | . . . 5 . . . . . . . . . . Catastrophic 4 | . . . 4 . . . . . . . . . . Database Lockouts . | . . . . . . . . . . . . . . Manual 5 | . . . 5 . . . . . . . . . . Terminals 7 | . . . 5 1 . . . . 1 . . . . Fabricators . | . . . . . . . . . . . . . . Repair Stations . | . . . . . . . . . . . . . . Recycling Units . | . . . . . . . . . . . . . . Scanalyzers . | . . . . . . . . . . . . . . Garrison Access . | . . . . . . . . . . . . . . Terminal Hacks 3 | . . . . 1 . . 1 . 1 . . . . Open Door 1 | . . . . . . . 1 . . . . . . Open DSF 2 | . . . . 1 . . . . 1 . . . . Fabricator Hacks . | . . . . . . . . . . . . . . Repair Station Hacks . | . . . . . . . . . . . . . . Recycling Unit Hacks . | . . . . . . . . . . . . . . Scanalyzer . | . . . . . . . . . . . . . . Garrison Access Hacks . | . . . . . . . . . . . . . . Unauthorized Hacks . | . . . . . . . . . . . . . . Terminals . | . . . . . . . . . . . . . . Fabricators . | . . . . . . . . . . . . . . Repair Stations . | . . . . . . . . . . . . . . Recycling Units . | . . . . . . . . . . . . . . Scanalyzers . | . . . . . . . . . . . . . . Garrison Access . | . . . . . . . . . . . . . . Data Cores Recovered . | . . . . . . . . . . . . . . Used . | . . . . . . . . . . . . . . Hacking Detections 2 | . . . 2 . . . . . . . . . . Full Trace Events . | . . . . . . . . . . . . . . Feedback Events . | . . . . . . . . . . . . . . Feedback Blocked . | . . . . . . . . . . . . . . Robot Schematics Acquired . | . . . . . . . . . . . . . . Robots Built . | . . . . . . . . . . . . . . Authchips . | . . . . . . . . . . . . . . Time . | . . . . . . . . . . . . . . Total Robot Build Rating . | . . . . . . . . . . . . . . Part Schematics Acquired . | . . . . . . . . . . . . . . Parts Built . | . . . . . . . . . . . . . . Authchips . | . . . . . . . . . . . . . . Time . | . . . . . . . . . . . . . . Total Part Build Rating . | . . . . . . . . . . . . . . Part Studies Acquired . | . . . . . . . . . . . . . . Parts Repaired . | . . . . . . . . . . . . . . Time . | . . . . . . . . . . . . . . Parts Recycled . | . . . . . . . . . . . . . . Recycled Matter . | . . . . . . . . . . . . . . Retrieved Matter . | . . . . . . . . . . . . . . Retrieved Components . | . . . . . . . . . . . . . . Parts Scanalyzed . | . . . . . . . . . . . . . . Part Schematics Acquired . | . . . . . . . . . . . . . . Parts Damaged . | . . . . . . . . . . . . . . Bothacking | -11 -10 -10 -7 -5 -5 -4 -4 -4 -3 -3 -2 -2 -1 ------------ Run | Yrd Mat Sub Rec Fac DSF Fac Upp Upp Res DSF Res Tes Acc Used RIF Installer . | . . . . . . . . . . . . . . Robots Hacked . | . . . . . . . . . . . . . . Non-combat . | . . . . . . . . . . . . . . Combat . | . . . . . . . . . . . . . . Robot Hacks Applied . | . . . . . . . . . . . . . . Relay Couplers Released . | . . . . . . . . . . . . . . Fabnet Peak Effective % . | . . . . . . . . . . . . . . Robots Rewired . | . . . . . . . . . . . . . . Allies Hacked . | . . . . . . . . . . . . . . Hacks Repelled . | . . . . . . . . . . . . . . Allies | -11 -10 -10 -7 -5 -5 -4 -4 -4 -3 -3 -2 -2 -1 -------- Run | Yrd Mat Sub Rec Fac DSF Fac Upp Upp Res DSF Res Tes Acc Total Allies . | . . . . . . . . . . . . . . Largest Group . | . . . . . . . . . . . . . . Highest-Rated Group . | . . . . . . . . . . . . . . Highest-Rated Ally . | . . . . . . . . . . . . . . Total Orders . | . . . . . . . . . . . . . . Ally Attacks . | . . . . . . . . . . . . . . Total Damage . | . . . . . . . . . . . . . . Kills . | . . . . . . . . . . . . . . Allies Corrupted . | . . . . . . . . . . . . . . Allies Melted . | . . . . . . . . . . . . . . Intel | -11 -10 -10 -7 -5 -5 -4 -4 -4 -3 -3 -2 -2 -1 ------- Run | Yrd Mat Sub Rec Fac DSF Fac Upp Upp Res DSF Res Tes Acc Active Infowar (turns) . | . . . . . . . . . . . . . . Robot Analysis Total . | . . . . . . . . . . . . . . Derelict Logs Recovered 3 | . . 2 . . . . 1 . . . . . . Drone Launches . | . . . . . . . . . . . . . . Drone Recoveries . | . . . . . . . . . . . . . . Exploration | -11 -10 -10 -7 -5 -5 -4 -4 -4 -3 -3 -2 -2 -1 ------------- Run | Yrd Mat Sub Rec Fac DSF Fac Upp Upp Res DSF Res Tes Acc Turns Passed 1107 | 15 70 234 100 48 27 11 116 42 2 31 112 115 184 Spaces Moved 2337 | 23 116 523 191 105 55 28 267 84 3 59 217 244 422 Core 1144 | 23 116 214 191 18 . . 29 84 3 59 217 101 89 Treads . | . . . . . . . . . . . . . . Legs . | . . . . . . . . . . . . . . Wheels . | . . . . . . . . . . . . . . Hover . | . . . . . . . . . . . . . . Flight 1193 | . . 309 . 87 55 28 238 . . . . 143 333 Fastest Speed 37 | 50 50 37 50 37 37 37 37 50 50 50 50 40 40 Average Speed 44 | 50 50 42 50 39 37 37 43 50 50 50 50 44 42 Slowest Speed 150 | 50 50 50 50 50 37 37 150 50 50 50 50 50 50 Overloaded Moves . | . . . . . . . . . . . . . . Propulsion Burnouts . | . . . . . . . . . . . . . . Robots Hopped 6 | . . . . . . . . . . . . 2 4 Potential Cave-ins . | . . . . . . . . . . . . . . Cave-ins Triggered . | . . . . . . . . . . . . . . Exploration Rate (%) 36 | 4 42 62 64 3 81 1 49 22 . 79 9 35 17 Regions Visited 13 Branch Regions 5 Pre-discovered Areas 1 | . . 1 . . . . . . . . . . . Known Exits Taken 2 | . . . . 1 . . . . 1 . . . . Unknown Exits Taken 9 | 1 1 1 1 . . 1 1 1 . . 1 1 . Scrap Searched 1 | . . . . . . . 1 . . . . . . Spaces Dug . | . . . . . . . . . . . . . . Terrain Destroyed 46 | . 7 19 . . . . . . . . . . 20 Melee . | . . . . . . . . . . . . . . Projectile . | . . . . . . . . . . . . . . AOE 46 | . 7 19 . . . . . . . . . . 20 Terrain Rammed . | . . . . . . . . . . . . . . Walls Destroyed . | . . . . . . . . . . . . . . Machines Disabled . | . . . . . . . . . . . . . . Actions | -11 -10 -10 -7 -5 -5 -4 -4 -4 -3 -3 -2 -2 -1 --------- Run | Yrd Mat Sub Rec Fac DSF Fac Upp Upp Res DSF Res Tes Acc Total 2371 | 24 125 530 194 111 61 28 267 83 2 59 218 246 423 Wait 2 | . . . 2 . . . . . . . . . . Move 2313 | 22 115 522 190 104 54 28 266 83 2 58 216 239 414 Hop 6 | . . . . . . . . . . . . 2 4 Pick Up 10 | . 3 1 1 . 4 . . . . 1 . . . Fast Attach 8 | 2 . . . 2 1 . . . . . 2 1 . Attach 10 | . 2 1 . 3 . . 1 . . . . 2 1 Detach 6 | . 2 . . 2 . . . . . . . 1 1 Swap 4 | . . 3 1 . . . . . . . . . . Drop 2 | . . . . . 2 . . . . . . . . Fire 6 | . 3 3 . . . . . . . . . . . Melee 2 | . . . . . . . . . . . . 1 1 Ram 2 | . . . . . . . . . . . . . 2 Kick . | . . . . . . . . . . . . . . Crush . | . . . . . . . . . . . . . . Escape Stasis . | . . . . . . . . . . . . . . Rewire . | . . . . . . . . . . . . . . Trap . | . . . . . . . . . . . . . . Miscellaneous . | . . . . . . . . . . . . . . Route ------- -11/Scrapyard -10/Materials (discovered 2 exits: [*Min] / [*Sub]) -10/Subcaves -7/Recycling -5/Factory -5/DSF -4/Factory -4/Upper Caves -4/Upper Caves -3/Research -3/DSF -2/Research -2/Testing -1/Access (discovered 1 exit: [*Sur]) History --------- Turn | Location | Event 7 | -11/Scrapyard | Discovered new exit (range 13) 16 | -11/Scrapyard | Entered Materials 42 | -10/Materials | Discovered new exit (range 12) 82 | -10/Materials | Discovered new exit (range 6) 86 | -10/Materials | Entered Subcaves 117 | -10/Subcaves | Learned location of Zion (-6) 135 | -10/Subcaves | Ambushed by Subdweller buried in earth 161 | -10/Subcaves | Shifting Twisted Machinery released Mak. Light Armor Plating 161 | -10/Subcaves | Shifting Twisted Machinery released Sub. Machine Gun 204 | -10/Subcaves | Learned Materials stockpile data 216 | -10/Subcaves | A swath of the cavern ceiling suddenly collapsed 224 | -10/Subcaves | Shifting Twisted Machinery released Spk. Treads 228 | -10/Subcaves | Shifting Twisted Machinery released Sub. Laser 274 | -10/Subcaves | Core integrity fell below 50% 310 | -10/Subcaves | Build established: Mutant 312 | -10/Subcaves | Discovered new exit (range 15) 317 | -10/Subcaves | Core integrity fell below 20% 320 | -10/Subcaves | Entered Recycling 413 | -7/Recycling | Discovered new exit (range 15) 420 | -7/Recycling | Entered Factory 420 | -5/Factory | Evolved 10 slots: Propulsion x6, Utility x4 468 | -5/Factory | Identified exit to DSF 468 | -5/Factory | Entered DSF 490 | -5/DSF | Discovered new exit (range 14) 495 | -5/DSF | Additional patrols routed to DSF 495 | -5/DSF | Entered Factory 495 | -4/Factory | Evolved 2 slots: Propulsion x1, Utility x1 500 | -4/Factory | Discovered new exit (range 16) 506 | -4/Factory | Entered Upper Caves 507 | -4/Upper Caves | Encountered a Warlord checkpoint 533 | -4/Upper Caves | Learned Research non-interactive machine intel 575 | -4/Upper Caves | Spotted B-86 Titan 609 | -4/Upper Caves | Discovered new exit (range 16) 622 | -4/Upper Caves | Entered another Upper Caves area 651 | -4/Upper Caves | Lost 6 parts (3n2u1w) 658 | -4/Upper Caves | Discovered new exit (range 13) 664 | -4/Upper Caves | Entered Research 664 | -3/Research | Evolved 2 slots: Propulsion x1, Utility x1 665 | -3/Research | Loaded intel: 58 non-interactive machine locations 666 | -3/Research | Identified exit to DSF 666 | -3/Research | Entered DSF 686 | -3/DSF | Discovered new exit (range 16) 688 | -3/DSF | Additional patrols routed to DSF 697 | -3/DSF | Entered Research 697 | -2/Research | Evolved 2 slots: Propulsion x1, Utility x1 804 | -2/Research | Discovered new exit (range 9) 809 | -2/Research | Entered Testing 921 | -2/Testing | Discovered new exit (range 8) 924 | -2/Testing | Entered Access 924 | -1/Access | Evolved 2 slots: Power x1, Propulsion x1 956 | -1/Access | Spotted B-99 Colossus 1059 | -1/Access | Energy Cycler disabled 1063 | -1/Access | Core integrity fell below 50% 1078 | -1/Access | Core integrity fell below 20% 1080 | -1/Access | System corruption reached 10% 1106 | -1/Access | Discovered new exit (range 7) 1108 | -1/Access | Destroyed by G-73 Enforcer with Phase Gun Last Messages --------------- 01059_ ALERT: Power surge detected, dispatching additional patrols. 01059_ Energy Cycler explodes. 01059_ Q-thruster destroyed. 01059_ Destroyed Q-thruster. 01061_ K-01 Serf cleans the Anti-Orbital Battery. 01065_ K-01 Serf collects debris. 01065_ ALERT: Hostiles spotted, dispatching reinforcements to Terminal A023. 01066_ Slammed into R-10 Processor. 01066_ Destabilizing: System corrupted (+2). 01066_ R-10 Processor sends out distress signal. 01068_ W-44 Eye sends out distress signal. 01068_ Slammed into R-10 Processor. 01074_ System corrupted: Matter fused (-8). 01074_ P-80 Master resets A-15 Conveyor, system corruption cleaned. 01076_ Wave Collapse Detector explodes. 01093_ System corrupted: Heat flow error (+296). 01094_ W-44 Eye sends out distress signal. 01106_ The Access Shell folds into the floor. 01106_ EXIT=FOUND Map ----- +----------------------------------------------------+ | ?????????????????????????????????????????????????? | | ?????????????????????????????????????????????????? | | ?????????????????????????????????????????????????? | | ?????????????????????????????????????????????????? | | ?????????????????????????????????????????????????? | | ????? ??????????????????????????????????????? | | ????# #????????????????????????????????????? | | ????# #????????????????????????????????????? | | ????# #????????????????????????????????????? | | ????# ##???????????????????????????????????? | | ????# ""???????????????????????????????????? | | ????# """??????????????????????????????????? | | ##### """??????????????????????????????????? | | # F"??????????????????????????????????? | | # """??????????????????????????????????? | | # ""???????????????????????????????????? | | # #????????????????????????????????????? | | + +????????????????????????????????????? | | # #????????????????????????????????????? | | # #????????????????????????????????????? | | + +??????????#""""""""""#??????????????? | | ##### #??????????# #??????????????? | | #####???# #??????????# #??????????????? | | ????????# #??????????# #??????????????? | | ???????# #??????????# "" #??????????????? | | #??????# #??????????# @ "< #??????????????? | | #??????# ####+#?????# #??????????????? | | ##??????# #?????# #??????????????? | | ?????#### #?????# #??????????????? | | ?????+ #????## ##?????????????? | | ?????#### #????# #?????????????? | | ????????# #????##"" ##?????????????? | | ????????# ###+#?????#"" #??????????????? | | ????????# # ????#"" #??????????????? | | ????????# # #??#T #??????????????? | | ??????# # #??#"" #??????????????? | | ???????# #! #??#"" g #??????????????? | | ######### ###########"" w ###????????????? | | A ???????? | | ???????? | | ###########+#############################????????? | | ?????????????????????????????????????????????????? | | ?????????????????????????????????????????????????? | | ?????????????????????????????????????????????????? | | ?????????????????????????????????????????????????? | | ?????????????????????????????????????????????????? | | ???######????????????????????????????????????????? | | #### #????????????????????????????????????????? | | #????????????????????????????????????????? | | " #????????????????????????????????????????? | +----------------------------------------------------+ Best States ------------- Heat Dissipation 52 Energy Generation 5 Energy Capacity 100 Matter Stores 300 Matter Capacity 300 Sight Range 16 Terrain Scan Density 10 Armor Coverage 150 Propulsion Shielding 66 Evasion (%) 62 Recoil Reduction 2 Offensive Hacking 10 Defensive Hacking 14 Item Schematics ----------------- None Robot Schematics ------------------ None Fabricated ------------ Nothing Repaired ---------- Nothing Studied --------- None Alien Tech Used ----------------- None Achievements -------------- None Challenges ------------ None Game ------ Seed DerelictCloakNanovents Manual? 0 Play Time 00:22:08 Cumulative 270.8 hours Start 2026.07.09 @ 01:13:54 End 2026.07.10 @ 13:09:02 Sessions 2 Manual Loads 0 Difficulty Rogue Special Mode None Game No. 126 Rogue 126 Adventurer 0 Explorer 0 Win Type - Total 16 Types 12/1/1/1/0/0/0/0/0/1 Lore% 76 Gallery% 73 Achievement% 72 Wizard Run 0 Options --------- Layout 0 ASCII 0 Keyboard 1 Movement Arrows Keybinds 0 Fullscreen 2 Font 18/SmallcapsGlow Map View 76x50 Zoom Use 0% Tactical HUD 1 Map Filters NONE Filters NONE Steam 1 RUN: 595c9469-c1ce-408c-8603-feae81c47c6d